fUST/lending_fUST_20240921
["ID","MTS","AMOUNT","RATE_DAILY","PERIOD"]
[338667956,1726861857026,-151.0,0.00016224,2]
[338667957,1726861857038,-500.0,0.00016224,2]
[338667958,1726861857048,-500.0,0.00016224,2]
[338667959,1726861857057,-500.0,0.00016224,2]
[338667960,1726861857067,-500.0,0.00016224,2]
[338667961,1726861857077,-500.0,0.00016224,2]
[338667962,1726861857086,-500.0,0.00016224,2]
[338667964,1726861857096,-500.0,0.00016224,2]
[338667965,1726861857105,-501.06,0.00016224,2]
[338667966,1726861857115,-500.0,0.00016224,2]
[338667967,1726861857124,-500.0,0.00016224,2]
[338667968,1726861857134,-152.084513,0.00016224,2]
[338667969,1726861857143,-504.93,0.00016224,2]
[338667970,1726861857153,-599.04,0.00016224,2]
[338667971,1726861857162,-292.27,0.00016224,2]
[338667972,1726861857171,-500.0,0.00016224,2]
[338667973,1726861857181,-500.0,0.00016224,2]
[338667974,1726861857191,-465.53355,0.00016224,2]
[338667975,1726861857200,-465.53355,0.00016224,2]
[338667976,1726861857209,-1128.579691,0.00016224,2]
[338667977,1726861857218,-500.0,0.00016224,2]
[338667978,1726861857228,-1128.579691,0.00016224,2]
[338667979,1726861857238,-812.5,0.00016224,2]
[338667980,1726861857250,-500.0,0.00016224,2]
[338667981,1726861857259,-500.0,0.00016224,2]
[338667982,1726861857269,-500.0,0.00016224,2]
[338667983,1726861857280,-360.27,0.00016224,2]
[338667984,1726861857290,-500.0,0.00016224,2]
[338667985,1726861857301,-500.0,0.00016224,2]
[338667986,1726861857312,-500.0,0.00016224,2]
[338667987,1726861857322,-500.0,0.00016224,2]
[338667988,1726861857332,-500.0,0.00016224,2]
[338667989,1726861857341,-500.0,0.00016224,2]
[338667990,1726861857351,-500.0,0.00016224,2]
[338667991,1726861857362,-500.0,0.00016224,2]
[338667992,1726861857372,-636.19,0.00016224,2]
[338667993,1726861857382,-500.0,0.00016224,2]
[338667994,1726861857392,-501.04881337,0.00016224,2]
[338667995,1726861857403,-172.58,0.00016224,2]
[338667997,1726861857413,-287.73218939,0.00016224,2]
[338667998,1726861857423,-620.53,0.00016224,2]
[338667999,1726861857433,-151.0,0.00016224,2]
[338668000,1726861857443,-500.0,0.00016224,2]
[338668001,1726861857453,-500.0,0.00016224,2]
[338668002,1726861857463,-500.0,0.00016224,2]
[338668003,1726861857474,-151.0,0.00016224,2]
[338668004,1726861857484,-567.59,0.00016224,2]
[338668005,1726861857495,-500.0,0.00016224,2]
[338668006,1726861857505,-214.42,0.00016224,2]
[338668007,1726861857515,-500.0,0.00016224,2]
[338668008,1726861857525,-500.0,0.00016224,2]
[338668009,1726861857537,-500.0,0.00016224,2]
[338668010,1726861857548,-426.82,0.00016224,2]
[338668011,1726861857559,-321.42921908,0.00016224,2]
[338668012,1726861857570,-500.0,0.00016224,2]
[338668013,1726861857581,-500.0,0.00016224,2]
[338668014,1726861857591,-500.0,0.00016224,2]
[338668015,1726861857600,-500.0,0.00016224,2]
[338668016,1726861857610,-500.0,0.00016224,2]
[338668017,1726861857621,-500.0,0.00016224,2]
[338668018,1726861857631,-1302.0,0.00016224,2]
[338668019,1726861857640,-501.2014432,0.00016224,2]
[338668020,1726861857650,-500.0,0.00016224,2]
[338668021,1726861857660,-500.0,0.00016224,2]
[338668022,1726861857669,-500.0,0.00016224,2]
[338668023,1726861857679,-500.0,0.00016224,2]
[338668024,1726861857688,-500.0,0.00016224,2]
[338668025,1726861857699,-280.73227265,0.00016224,2]
[338668026,1726861857709,-500.0,0.00016224,2]
[338668027,1726861857718,-500.0,0.00016224,2]
[338668028,1726861857728,-500.0,0.00016224,2]
[338668029,1726861857737,-457.77,0.00016224,2]
[338668030,1726861857747,-866.38,0.00016224,2]
[338668031,1726861857756,-500.0,0.00016224,2]
[338668032,1726861857765,-500.0,0.00016224,2]
[338668033,1726861857775,-500.0,0.00016224,2]
[338668034,1726861857785,-500.0,0.00016224,2]
[338668035,1726861857794,-500.0,0.00016224,2]
[338668036,1726861857803,-593.68,0.00016224,2]
[338668037,1726861857812,-500.0,0.00016224,2]
[338668038,1726861857822,-500.0,0.00016224,2]
[338668039,1726861857832,-500.0,0.00016224,2]
[338668040,1726861857842,-244.71,0.00016224,2]
[338668041,1726861857852,-500.0,0.00016224,2]
[338668042,1726861857861,-599.94,0.00016224,2]
[338668043,1726861857871,-837.620688,0.00016224,2]
[338668044,1726861857881,-837.620688,0.00016224,2]
[338668045,1726861857891,-500.0,0.00016224,2]
[338668046,1726861857900,-500.0,0.00016224,2]
[338668047,1726861857911,-500.0,0.00016224,2]
[338668048,1726861857920,-500.0,0.00016224,2]
[338668049,1726861857930,-151.0,0.00016224,2]
[338668050,1726861857940,-500.0,0.00016224,2]
[338668051,1726861857949,-500.0,0.00016224,2]
[338668052,1726861857959,-340.17,0.00016224,2]
[338668053,1726861857969,-523.27754454,0.00016224,2]
[338668054,1726861857979,-254.8404123,0.00016224,2]
[338668055,1726861857988,-500.0,0.00016224,2]
[338668056,1726861857997,-500.0,0.00016224,2]
[338668057,1726861858007,-500.0,0.00016224,2]
[338668058,1726861858017,-500.0,0.00016224,2]
[338668059,1726861858027,-2280.61,0.00016224,2]
[338668060,1726861858038,-669.48,0.00016224,2]
[338668061,1726861858047,-204.3399437,0.00016224,2]
[338668062,1726861858056,-151.0,0.00016224,2]
[338668064,1726861858066,-500.0,0.00016224,2]
[338668065,1726861858075,-726.3,0.00016224,2]
[338668066,1726861858084,-1026.75,0.00016224,2]
[338668067,1726861858094,-500.0,0.00016224,2]
[338668068,1726861858104,-1084.68,0.00016224,2]
[338668069,1726861858113,-500.0,0.00016224,2]
[338668070,1726861858123,-907.23,0.00016224,2]
[338668071,1726861858133,-187.058273,0.00016224,2]
[338668072,1726861858143,-500.0,0.00016224,2]
[338668073,1726861858152,-187.058273,0.00016224,2]
[338668074,1726861858161,-572.31,0.00016224,2]
[338668075,1726861858171,-500.0,0.00016224,2]
[338668076,1726861858180,-1116.57,0.00016224,2]
[338668077,1726861858190,-500.0,0.00016224,2]
[338668078,1726861858199,-903.27,0.00016224,2]
[338668079,1726861858209,-500.0,0.00016224,2]
[338668080,1726861858218,-500.0,0.00016224,2]
[338668081,1726861858227,-500.0,0.00016224,2]
[338668082,1726861858237,-653.87,0.00016224,2]
[338668083,1726861858246,-500.0,0.00016224,2]
[338668084,1726861858256,-500.0,0.00016224,2]
[338668085,1726861858265,-1050.13,0.00016224,2]
[338668086,1726861858275,-500.0,0.00016224,2]
[338668087,1726861858285,-500.0,0.00016224,2]
[338668088,1726861858295,-500.0,0.00016224,2]
[338668089,1726861858304,-667.12,0.00016224,2]
[338668090,1726861858314,-264.363765,0.00016224,2]
[338668091,1726861858324,-596.06,0.00016224,2]
[338668092,1726861858333,-500.0,0.00016224,2]
[338668093,1726861858343,-264.363765,0.00016224,2]
[338668094,1726861858353,-500.0,0.00016224,2]
[338668095,1726861858363,-500.0,0.00016224,2]
[338668096,1726861858373,-570.9,0.00016224,2]
[338668097,1726861858383,-500.0,0.00016224,2]
[338668099,1726861858393,-500.0,0.00016224,2]
[338668100,1726861858402,-500.0,0.00016224,2]
[338668101,1726861858412,-500.0,0.00016224,2]
[338668102,1726861858423,-500.0,0.00016224,2]
[338668103,1726861858432,-500.0,0.00016224,2]
[338668104,1726861858443,-500.0,0.00016224,2]
[338668105,1726861858453,-500.0,0.00016224,2]
[338668106,1726861858462,-500.0,0.00016224,2]
[338668107,1726861858471,-500.0,0.00016224,2]
[338668108,1726861858482,-500.0,0.00016224,2]
[338668109,1726861858491,-500.0,0.00016224,2]
[338668110,1726861858501,-500.0,0.00016224,2]
[338668111,1726861858513,-500.0,0.00016224,2]
[338668112,1726861858524,-500.0,0.00016224,2]
[338668113,1726861858536,-716.71,0.00016224,2]
[338668114,1726861858546,-500.0,0.00016224,2]
[338668115,1726861858557,-500.0,0.00016224,2]
[338668116,1726861858571,-500.0,0.00016224,2]
[338668117,1726861858581,-500.0,0.00016224,2]
[338668118,1726861858592,-500.0,0.00016224,2]
[338668119,1726861858602,-581.36,0.00016224,2]
[338668121,1726861858614,-500.0,0.00016224,2]
[338668122,1726861858625,-500.0,0.00016224,2]
[338668123,1726861858635,-500.0,0.00016224,2]
[338668124,1726861858646,-500.0,0.00016224,2]
[338668125,1726861858657,-500.0,0.00016224,2]
[338668126,1726861858667,-500.0,0.00016224,2]
[338668127,1726861858678,-500.0,0.00016224,2]
[338668128,1726861858690,-500.0,0.00016224,2]
[338668129,1726861858700,-333.06869054,0.00016225,2]
[338668130,1726861858710,-500.0,0.00016234,2]
[338668131,1726861858720,-210.484261,0.00016234,2]
[338668132,1726861858729,-210.484261,0.00016234,2]
[338668133,1726861858739,-151.0,0.00016234,2]
[338668134,1726861858749,-500.0,0.00016234,2]
[338668136,1726861858760,-500.0,0.00016234,2]
[338668137,1726861858771,-500.0,0.00016234,2]
[338668138,1726861858783,-500.0,0.00016234,2]
[338668139,1726861858793,-500.0,0.00016234,2]
[338668140,1726861858804,-998.987513,0.00016234,2]
[338668141,1726861858814,-998.987513,0.00016234,2]
[338668142,1726861858825,-249.033141,0.00016234,2]
[338668143,1726861858836,-569.075854,0.00016234,2]
[338668144,1726861858846,-569.075854,0.00016234,2]
[338668145,1726861858857,-402.802275,0.00016234,2]
[338668146,1726861858867,-402.802275,0.00016234,2]
[338668147,1726861858877,-500.0,0.00016239,2]
[338668148,1726861858887,-151.0,0.00016242,2]
[338668149,1726861858896,-876.351473,0.00016242,2]
[338668150,1726861858906,-211.309823,0.00016242,2]
[338668151,1726861858915,-151.292781,0.00016242,2]
[338668153,1726861858925,-151.292781,0.00016242,2]
[338668154,1726861858934,-151.0,0.00016242,2]
[338668155,1726861858945,-1000.0,0.00016242,2]
[338668156,1726861858956,-903.77,0.00016244,2]
[338668157,1726861858967,-151.0,0.00016245,2]
[338668158,1726861858978,-151.0,0.00016245,2]
[338668159,1726861858988,-151.0,0.00016245,2]
[338668160,1726861859001,-150.0,0.00016249,2]
[338668161,1726861859012,-500.0,0.00016253,2]
[338668162,1726861859022,-295.56,0.00016253,2]
[338668163,1726861859032,-500.0,0.00016253,2]
[338668164,1726861859041,-500.0,0.00016253,2]
[338668165,1726861859051,-394.56,0.00016253,2]
[338668166,1726861859060,-298.46684654,0.00016253,2]
[338668167,1726861859071,-500.0,0.00016253,2]
[338668168,1726861859082,-500.0,0.00016253,2]
[338668169,1726861859093,-500.0,0.00016253,2]
[338668170,1726861859103,-500.0,0.00016253,2]
[338668171,1726861859112,-500.0,0.00016253,2]
[338668172,1726861859123,-367.46,0.00016253,2]
[338668174,1726861859133,-500.0,0.00016253,2]
[338668175,1726861859143,-500.0,0.00016253,2]
[338668176,1726861859154,-500.0,0.00016253,2]
[338668177,1726861859164,-267.00105848,0.00016253,2]
[338668179,1726861859174,-465.53355,0.00016253,2]
[338668180,1726861859184,-465.53355,0.00016253,2]
[338668181,1726861859194,-1128.579691,0.00016253,2]
[338668182,1726861859203,-1128.579691,0.00016253,2]
[338668183,1726861859212,-151.0,0.00016253,2]
[338668184,1726861859222,-151.0,0.00016254,2]
[338668185,1726861859231,-150.0,0.000163,2]
[338668186,1726861859240,-3000.0,0.000164,2]
[338668187,1726861859250,-916.0,0.000164,2]
[338668189,1726861859260,-903.77,0.00016409,2]
[338668190,1726861859270,-3000.0,0.0001641,2]
[338668191,1726861859280,-1251.732,0.0001642,2]
[338668192,1726861859289,-3000.0,0.0001642,2]
[338668193,1726861859299,-3000.0,0.0001643,2]
[338668194,1726861859308,-151.0,0.00016437,2]
[338668195,1726861859317,-151.0,0.00016437,2]
[338668196,1726861859327,-8000.0,0.00016437,2]
[338668197,1726861859336,-200.0,0.00016438,2]
[338668198,1726861859346,-200.0,0.00016438,2]
[338668199,1726861859356,-200.0,0.00016438,2]
[338668200,1726861859365,-200.0,0.00016438,2]
[338668201,1726861859375,-200.0,0.00016438,2]
[338668202,1726861859384,-200.0,0.00016438,2]
[338668203,1726861859394,-200.0,0.00016438,2]
[338668204,1726861859404,-151.0,0.00016438,2]
[338668205,1726861859413,-154.795383,0.00016438,2]
[338668206,1726861859422,-903.77,0.00016439,2]
[338668207,1726861859434,-3000.0,0.0001644,2]
[338668208,1726861859443,-3000.0,0.0001645,2]
[338668209,1726861859452,-3000.0,0.0001646,2]
[338668210,1726861859462,-151.0,0.0001646,2]
[338668212,1726861859472,-280.629572,0.0001646,2]
[338668213,1726861859481,-152.007061,0.0001646,2]
[338668214,1726861859491,-280.629572,0.0001646,2]
[338668215,1726861859500,-152.007061,0.0001646,2]
[338668216,1726861859510,-874.555519,0.0001646,2]
[338668217,1726861859519,-874.555519,0.0001646,2]
[338668219,1726861859529,-3000.0,0.0001647,2]
[338668220,1726861859539,-151.0,0.0001648,2]
[338668221,1726861859549,-151.0,0.0001648,2]
[338668222,1726861859558,-151.0,0.0001648,2]
[338668223,1726861859568,-219.533465,0.0001648,2]
[338668225,1726861859577,-219.533465,0.0001648,2]
[338668226,1726861859586,-194.881622,0.0001648,2]
[338668227,1726861859717,-194.881622,0.0001648,2]
[338668228,1726861859729,-3000.0,0.0001648,2]
[338668229,1726861859739,-500.0,0.0001648,2]
[338668230,1726861859748,-500.0,0.0001648,2]
[338668231,1726861859758,-500.0,0.0001648,2]
[338668232,1726861859767,-202.243304,0.0001648,2]
[338668233,1726861859777,-202.243304,0.0001648,2]
[338668235,1726861859787,-942.42,0.0001648,2]
[338668236,1726861859796,-500.0,0.0001648,2]
[338668237,1726861859806,-500.0,0.0001648,2]
[338668238,1726861859815,-738.19,0.0001648,2]
[338668239,1726861859826,-500.0,0.0001648,2]
[338668241,1726861859835,-500.0,0.0001648,2]
[338668242,1726861859847,-200.0,0.0001648,2]
[338668243,1726861859858,-535.98,0.0001648,2]
[338668244,1726861859868,-342.64915197,0.0001648,2]
[338668245,1726861859878,-468.59729255,0.0001648,2]
[338668247,1726861859887,-534.67,0.0001648,2]
[338668248,1726861859899,-500.0,0.0001648,2]
[338668249,1726861859910,-580.18,0.0001648,2]
[338668250,1726861859921,-500.0,0.0001648,2]
[338668251,1726861859930,-500.0,0.0001648,2]
[338668252,1726861859942,-500.0,0.0001648,2]
[338668253,1726861859952,-636.89,0.0001648,2]
[338668254,1726861859961,-500.0,0.0001648,2]
[338668255,1726861859972,-1821.39,0.0001648,2]
[338668256,1726861859982,-500.0,0.0001648,2]
[338668257,1726861859992,-500.0,0.0001648,2]
[338668258,1726861860003,-500.0,0.0001648,2]
[338668259,1726861860013,-412.48669,0.0001648,2]
[338668260,1726861860023,-412.48669,0.0001648,2]
[338668261,1726861860038,-500.0,0.0001648,2]
[338668262,1726861860046,-193.018,0.0001648,2]
[338668263,1726861860058,-1170.8,0.0001648,2]
[338668264,1726861860068,-500.0,0.0001648,2]
[338668265,1726861860077,-500.0,0.0001648,2]
[338668266,1726861860088,-500.0,0.0001648,2]
[338668267,1726861860098,-400.4723907,0.0001648,2]
[338668268,1726861860107,-160.0,0.00016489,2]
[338668269,1726861860117,-1603.85,0.0001649,2]
[338668271,1726861860127,-500.0,0.0001649,2]
[338668272,1726861860137,-3000.0,0.0001649,2]
[338668273,1726861860147,-500.0,0.0001649,2]
[338668274,1726861860156,-500.0,0.0001649,2]
[338668275,1726861860166,-500.0,0.0001649,2]
[338668276,1726861860176,-594.94,0.0001649,2]
[338668277,1726861860186,-611.1,0.0001649,2]
[338668278,1726861860196,-500.0,0.0001649,2]
[338668279,1726861860206,-500.0,0.0001649,2]
[338668280,1726861860215,-916.06,0.0001649,2]
[338668281,1726861860225,-509.7,0.0001649,2]
[338668282,1726861860235,-151.0,0.0001649,2]
[338668284,1726861860244,-599.42,0.0001649,2]
[338668285,1726861860255,-500.0,0.0001649,2]
[338668286,1726861860264,-586.37,0.0001649,2]
[338668287,1726861860274,-500.0,0.0001649,2]
[338668288,1726861860286,-1222.61,0.0001649,2]
[338668289,1726861860295,-500.0,0.0001649,2]
[338668290,1726861860305,-734.95,0.0001649,2]
[338668291,1726861860315,-620.95,0.0001649,2]
[338668292,1726861860324,-500.0,0.0001649,2]
[338668293,1726861860334,-264.363765,0.0001649,2]
[338668294,1726861860343,-264.363765,0.0001649,2]
[338668295,1726861860353,-500.0,0.0001649,2]
[338668296,1726861860363,-995.07,0.0001649,2]
[338668297,1726861860373,-500.0,0.0001649,2]
[338668298,1726861860383,-500.0,0.0001649,2]
[338668299,1726861860393,-500.0,0.0001649,2]
[338668300,1726861860404,-500.0,0.0001649,2]
[338668301,1726861860414,-500.0,0.0001649,2]
[338668302,1726861860425,-500.0,0.0001649,2]
[338668304,1726861860435,-151.0,0.00016496,2]
[338668305,1726861860445,-151.0,0.00016497,2]
[338668306,1726861860455,-151.292781,0.00016497,2]
[338668307,1726861860465,-151.292781,0.00016497,2]
[338668308,1726861860475,-151.0,0.00016497,2]
[338668309,1726861860484,-160.0,0.00016497,2]
[338668310,1726861860494,-500.0,0.00016498,2]
[338668311,1726861860504,-500.0,0.00016498,2]
[338668312,1726861860514,-500.0,0.00016498,2]
[338668313,1726861860524,-876.351473,0.00016498,2]
[338668314,1726861860535,-500.0,0.00016498,2]
[338668316,1726861860545,-578.26,0.00016498,2]
[338668317,1726861860556,-500.0,0.00016498,2]
[338668318,1726861860566,-500.0,0.00016498,2]
[338668319,1726861860576,-500.0,0.00016498,2]
[338668320,1726861860585,-500.0,0.00016498,2]
[338668321,1726861860594,-500.0,0.00016498,2]
[338668322,1726861860604,-504.93,0.00016498,2]
[338668323,1726861860616,-599.04,0.00016498,2]
[338668324,1726861860625,-500.0,0.00016498,2]
[338668325,1726861860635,-465.53355,0.00016498,2]
[338668326,1726861860645,-465.53355,0.00016498,2]
[338668327,1726861860655,-1128.579691,0.00016498,2]
[338668328,1726861860665,-500.0,0.00016498,2]
[338668329,1726861860675,-1128.579691,0.00016498,2]
[338668330,1726861860684,-812.5,0.00016498,2]
[338668331,1726861860695,-500.0,0.00016498,2]
[338668332,1726861860704,-500.0,0.00016498,2]
[338668333,1726861860713,-500.0,0.00016498,2]
[338668334,1726861860722,-500.0,0.00016498,2]
[338668335,1726861860732,-500.0,0.00016498,2]
[338668336,1726861860742,-390.14,0.00016498,2]
[338668337,1726861860751,-500.0,0.00016498,2]
[338668338,1726861860760,-500.0,0.00016498,2]
[338668339,1726861860769,-500.0,0.00016498,2]
[338668340,1726861860779,-636.19,0.00016498,2]
[338668342,1726861860788,-500.0,0.00016498,2]
[338668343,1726861860797,-620.53,0.00016498,2]
[338668344,1726861860806,-500.0,0.00016498,2]
[338668345,1726861860815,-608.67,0.00016498,2]
[338668346,1726861860824,-500.0,0.00016498,2]
[338668347,1726861860833,-420.41,0.00016498,2]
[338668348,1726861860842,-500.0,0.00016498,2]
[338668349,1726861860851,-500.0,0.00016498,2]
[338668350,1726861860861,-500.0,0.00016498,2]
[338668351,1726861860871,-500.0,0.00016498,2]
[338668352,1726861860881,-500.0,0.00016498,2]
[338668353,1726861860890,-500.0,0.00016498,2]
[338668354,1726861860899,-500.0,0.00016498,2]
[338668355,1726861860909,-500.0,0.00016498,2]
[338668356,1726861860918,-1302.0,0.00016498,2]
[338668357,1726861860928,-500.0,0.00016498,2]
[338668358,1726861860937,-500.0,0.00016498,2]
[338668359,1726861860947,-500.0,0.00016498,2]
[338668360,1726861860957,-500.0,0.00016498,2]
[338668361,1726861860967,-500.0,0.00016498,2]
[338668362,1726861860976,-500.0,0.00016498,2]
[338668363,1726861860986,-866.38,0.00016498,2]
[338668364,1726861860995,-500.0,0.00016498,2]
[338668365,1726861861004,-500.0,0.00016498,2]
[338668366,1726861861013,-500.0,0.00016498,2]
[338668367,1726861861022,-500.0,0.00016498,2]
[338668368,1726861861031,-500.0,0.00016498,2]
[338668369,1726861861041,-593.68,0.00016498,2]
[338668370,1726861861051,-500.0,0.00016498,2]
[338668371,1726861861060,-500.0,0.00016498,2]
[338668372,1726861861070,-500.0,0.00016498,2]
[338668373,1726861861079,-244.71,0.00016498,2]
[338668374,1726861861088,-500.0,0.00016498,2]
[338668375,1726861861098,-599.94,0.00016498,2]
[338668377,1726861861108,-837.620688,0.00016498,2]
[338668378,1726861861117,-837.620688,0.00016498,2]
[338668379,1726861861126,-347.85724891,0.00016498,2]
[338668380,1726861861136,-500.0,0.00016498,2]
[338668381,1726861861145,-998.987513,0.00016498,2]
[338668382,1726861861154,-998.987513,0.00016498,2]
[338668383,1726861861164,-500.0,0.00016498,2]
[338668384,1726861861173,-500.0,0.00016498,2]
[338668385,1726861861183,-500.0,0.00016498,2]
[338668386,1726861861192,-500.0,0.00016498,2]
[338668387,1726861861202,-430.72399219,0.00016498,2]
[338668388,1726861861212,-500.0,0.00016498,2]
[338668389,1726861861221,-500.0,0.00016498,2]
[338668390,1726861861230,-324.36611061,0.00016498,2]
[338668391,1726861861239,-2280.61,0.00016498,2]
[338668392,1726861861248,-669.48,0.00016498,2]
[338668393,1726861861259,-500.0,0.00016498,2]
[338668394,1726861861269,-726.3,0.00016498,2]
[338668395,1726861861279,-1026.75,0.00016498,2]
[338668396,1726861861289,-500.0,0.00016498,2]
[338668397,1726861861298,-1084.68,0.00016498,2]
[338668398,1726861861307,-500.0,0.00016498,2]
[338668399,1726861861317,-907.23,0.00016498,2]
[338668400,1726861861326,-187.058273,0.00016498,2]
[338668401,1726861861336,-187.058273,0.00016498,2]
[338668402,1726861861346,-572.31,0.00016498,2]
[338668403,1726861861355,-569.075854,0.00016498,2]
[338668404,1726861861365,-569.075854,0.00016498,2]
[338668405,1726861861376,-1116.57,0.00016498,2]
[338668406,1726861861386,-903.27,0.00016498,2]
[338668407,1726861861396,-500.0,0.00016498,2]
[338668408,1726861861406,-500.0,0.00016498,2]
[338668409,1726861861416,-500.0,0.00016498,2]
[338668410,1726861861426,-653.87,0.00016498,2]
[338668411,1726861861435,-500.0,0.00016498,2]
[338668412,1726861861445,-500.0,0.00016498,2]
[338668413,1726861861454,-1050.13,0.00016498,2]
[338668414,1726861861464,-500.0,0.00016498,2]
[338668415,1726861861473,-500.0,0.00016498,2]
[338668416,1726861861482,-500.0,0.00016498,2]
[338668417,1726861861492,-667.12,0.00016498,2]
[338668418,1726861861502,-596.06,0.00016498,2]
[338668419,1726861861511,-402.802275,0.00016498,2]
[338668420,1726861861520,-500.0,0.00016498,2]
[338668421,1726861861531,-402.802275,0.00016498,2]
[338668422,1726861861540,-500.0,0.00016498,2]
[338668423,1726861861550,-570.9,0.00016498,2]
[338668424,1726861861559,-500.0,0.00016498,2]
[338668425,1726861861569,-500.0,0.00016498,2]
[338668426,1726861861579,-213.98,0.00016498,2]
[338668427,1726861861589,-500.0,0.00016498,2]
[338668428,1726861861598,-500.0,0.00016498,2]
[338668429,1726861861608,-500.0,0.00016498,2]
[338668430,1726861861620,-500.0,0.00016498,2]
[338668431,1726861861630,-500.0,0.00016498,2]
[338668432,1726861861639,-500.0,0.00016498,2]
[338668433,1726861861648,-500.0,0.00016498,2]
[338668434,1726861861659,-500.0,0.00016498,2]
[338668435,1726861861668,-500.0,0.00016498,2]
[338668436,1726861861678,-500.0,0.00016498,2]
[338668437,1726861861689,-500.0,0.00016498,2]
[338668438,1726861861699,-716.71,0.00016498,2]
[338668439,1726861861710,-500.0,0.00016498,2]
[338668440,1726861861719,-303.6,0.00016498,2]
[338668441,1726861861729,-581.36,0.00016498,2]
[338668442,1726861861739,-500.0,0.00016498,2]
[338668443,1726861861748,-569.29975943,0.00016498,2]
[338668444,1726861861758,-500.0,0.00016498,2]
[338668446,1726861861768,-500.0,0.00016498,2]
[338668447,1726861861778,-576.54,0.00016498,2]
[338668448,1726861861792,-1237.35922508,0.000165,2]
[338668449,1726861861803,-3000.0,0.000165,2]
[338668450,1726861861814,-1696.204153,0.000165,2]
[338668451,1726861861824,-210.484261,0.00016508,2]
[338668452,1726861861834,-210.484261,0.00016508,2]
[338668453,1726861861843,-256.1607,0.00016508,2]
[338668454,1726861861853,-256.1607,0.00016508,2]
[338668455,1726861861863,-151.0,0.00016508,2]
[338668456,1726861861872,-151.0,0.00016508,2]
[338668457,1726861861882,-903.77,0.00016508,2]
[338668458,1726861861892,-500.0,0.00016508,2]
[338668459,1726861861901,-500.0,0.00016508,2]
[338668460,1726861861911,-151.0,0.00016508,2]
[338668461,1726861861920,-151.0,0.00016508,2]
[338668462,1726861861930,-151.0,0.00016508,2]
[338668463,1726861861939,-500.0,0.00016508,2]
[338668464,1726861861949,-412.48669,0.00016508,2]
[338668465,1726861861958,-412.486684,0.00016508,2]
[338668467,1726861861968,-3000.0,0.0001651,2]
[338668468,1726861861977,-151.0,0.0001651,2]
[338668469,1726861861987,-152.007061,0.0001651,2]
[338668470,1726861861997,-152.007061,0.0001651,2]
[338668471,1726861862006,-151.0,0.0001652,2]
[338668472,1726861862016,-3000.0,0.0001652,2]
[338668473,1726861862025,-151.0,0.00016527,2]
[338668474,1726861862041,-151.0,0.00016527,2]
[338668475,1726861862051,-500.0,0.00016527,2]
[338668476,1726861862060,-500.0,0.00016527,2]
[338668477,1726861862070,-478.04,0.00016527,2]
[338668478,1726861862080,-500.0,0.00016527,2]
[338668479,1726861862089,-500.0,0.00016527,2]